fUSD/lending_fUSD_20260610
["ID","MTS","AMOUNT","RATE_DAILY","PERIOD"]
[424638234,1781025051000,-578.60148306,0.00017458,2]
[424638288,1781025051000,-150.0,0.00017644,2]
[424638317,1781025051000,-150.0,0.00017733,2]
[424638320,1781025051000,-284.0,0.00017733,2]
[424638328,1781025051000,-150.0,0.0001775,2]
[424638329,1781025051000,-150.0,0.0001775,2]
[424638327,1781025051000,-297.0,0.0001775,2]
[424638326,1781025051000,-150.0,0.0001775,2]
[424638321,1781025051000,-150.0,0.00017733,2]
[424638319,1781025051000,-150.0,0.00017733,2]
[424638322,1781025051000,-150.0,0.00017742,2]
[424638324,1781025051000,-578.60148306,0.00017745,2]
[424638323,1781025051000,-170.21291421,0.00017745,2]
[424638325,1781025051000,-150.0,0.00017748,2]
[424638330,1781025051000,-150.0,0.0001775,2]
[424638333,1781025051000,-185.0,0.0001775,2]
[424638337,1781025051000,-250.0,0.00017752,2]
[424638331,1781025051000,-150.0,0.0001775,2]
[424638335,1781025051000,-250.0,0.00017752,2]
[424638339,1781025051000,-250.0,0.00017752,2]
[424638334,1781025051000,-250.0,0.00017752,2]
[424638338,1781025051000,-250.0,0.00017752,2]
[424638332,1781025051000,-150.0,0.0001775,2]
[424638336,1781025051000,-250.0,0.00017752,2]
[424638340,1781025051000,-250.0,0.00017752,2]
[424638343,1781025051000,-450.0,0.00017753,2]
[424638342,1781025051000,-450.0,0.00017753,2]
[424638311,1781025051000,-150.0,0.00017712,2]
[424638316,1781025051000,-150.0,0.00017733,2]
[424638341,1781025051000,-324.0,0.00017752,2]
[424638318,1781025051000,-150.0,0.00017733,2]
[424638315,1781025051000,-578.60148306,0.00017727,2]
[424638291,1781025051000,-170.21291421,0.00017655,2]
[424638292,1781025051000,-578.60148306,0.00017655,2]
[424638287,1781025051000,-578.60148306,0.00017637,2]
[424638289,1781025051000,-150.0,0.00017644,2]
[424638283,1781025051000,-578.60148306,0.00017619,2]
[424638293,1781025051000,-150.0,0.00017661,2]
[424638294,1781025051000,-150.0,0.00017664,2]
[424638295,1781025051000,-288.0,0.00017665,2]
[424638296,1781025051000,-170.21291421,0.00017673,2]
[424638306,1781025051000,-2000.0,0.000177,2]
[424638297,1781025051000,-578.60148306,0.00017673,2]
[424638299,1781025051000,-150.0,0.00017683,2]
[424638290,1781025051000,-150.0,0.00017649,2]
[424638301,1781025051000,-170.21291421,0.00017691,2]
[424638314,1781025051000,-170.21291421,0.00017727,2]
[424638312,1781025051000,-150.0,0.00017715,2]
[424638313,1781025051000,-150.0,0.00017722,2]
[424638308,1781025051000,-150.0,0.00017709,2]
[424638300,1781025051000,-150.0,0.00017685,2]
[424638307,1781025051000,-150.0,0.00017703,2]
[424638309,1781025051000,-170.21291421,0.00017709,2]
[424638305,1781025051000,-4686.55964528,0.000177,2]
[424638304,1781025051000,-403.0,0.000177,5]
[424638302,1781025051000,-578.60148306,0.00017691,2]
[424638303,1781025051000,-794.38804377,0.000177,2]
[424638298,1781025051000,-150.0,0.00017682,2]
[424638310,1781025051000,-578.60148306,0.00017709,2]
[424638382,1781025052000,-578.20924308,0.00017857,2]
[424638384,1781025052000,-151.0,0.00017857,2]
[424638381,1781025052000,-151.0,0.00017857,2]
[424638380,1781025052000,-209.40437684,0.00017857,2]
[424638375,1781025052000,-693.39197629,0.00017857,2]
[424638385,1781025052000,-9552.16786547,0.00017857,2]
[424638376,1781025052000,-151.0,0.00017857,2]
[424638374,1781025052000,-200.0,0.00017857,2]
[424638377,1781025052000,-232.56974424,0.00017857,2]
[424638378,1781025052000,-151.0,0.00017857,2]
[424638379,1781025052000,-1428.38747117,0.00017857,2]
[424638391,1781025052000,-151.0,0.00017857,2]
[424638388,1781025052000,-151.0,0.00017857,2]
[424638386,1781025052000,-2080.17592889,0.00017857,2]
[424638392,1781025052000,-151.0,0.00017857,2]
[424638390,1781025052000,-151.0,0.00017857,2]
[424638369,1781025052000,-154.6875,0.00017857,2]
[424638389,1781025052000,-151.0,0.00017857,2]
[424638393,1781025052000,-151.0,0.00017857,2]
[424638396,1781025052000,-151.0,0.00017857,2]
[424638395,1781025052000,-151.0,0.00017857,2]
[424638394,1781025052000,-209.40437684,0.00017857,2]
[424638387,1781025052000,-151.0,0.00017857,2]
[424638397,1781025052000,-151.0,0.00017857,2]
[424638399,1781025052000,-151.0,0.00017857,2]
[424638383,1781025052000,-151.0,0.00017857,2]
[424638365,1781025052000,-281.0532509,0.00017781,2]
[424638364,1781025052000,-578.60148306,0.00017781,2]
[424638366,1781025052000,-714.29,0.000178,2]
[424638407,1781025052000,-151.0,0.00017857,2]
[424638347,1781025052000,-450.0,0.00017753,2]
[424638344,1781025052000,-450.0,0.00017753,2]
[424638350,1781025052000,-450.0,0.00017753,2]
[424638346,1781025052000,-450.0,0.00017753,2]
[424638349,1781025052000,-450.0,0.00017753,2]
[424638348,1781025052000,-450.0,0.00017753,2]
[424638345,1781025052000,-450.0,0.00017753,2]
[424638352,1781025052000,-150.0,0.00017757,2]
[424638351,1781025052000,-258.0,0.00017753,2]
[424638355,1781025052000,-578.60148306,0.00017763,2]
[424638353,1781025052000,-150.0,0.00017761,2]
[424638357,1781025052000,-251.96802586,0.00017781,2]
[424638356,1781025052000,-154.16136238,0.00017781,2]
[424638354,1781025052000,-170.21291421,0.00017763,2]
[424638361,1781025052000,-185.84207243,0.00017781,2]
[424638358,1781025052000,-256.9210278,0.00017781,2]
[424638359,1781025052000,-170.21291421,0.00017781,2]
[424638362,1781025052000,-151.56478511,0.00017781,2]
[424638367,1781025052000,-7482.71,0.00017808,2]
[424638363,1781025052000,-179.43010993,0.00017781,2]
[424638370,1781025052000,-693.39197629,0.00017857,2]
[424638368,1781025052000,-2000.0,0.00017809,7]
[424638373,1781025052000,-151.0,0.00017857,2]
[424638371,1781025052000,-151.0,0.00017857,2]
[424638372,1781025052000,-174.61919141,0.00017857,2]
[424638360,1781025052000,-206.50834213,0.00017781,2]
[424638408,1781025052000,-151.0,0.00017857,2]
[424638401,1781025052000,-151.0,0.00017857,2]
[424638428,1781025052000,-151.0,0.00017857,2]
[424638442,1781025052000,-151.0,0.00017857,2]
[424638443,1781025052000,-151.0,0.00017857,2]
[424638435,1781025052000,-151.0,0.00017857,2]
[424638436,1781025052000,-152.0,0.00017857,2]
[424638434,1781025052000,-151.0,0.00017857,2]
[424638437,1781025052000,-151.0,0.00017857,2]
[424638433,1781025052000,-500.0,0.00017857,2]
[424638439,1781025052000,-151.0,0.00017857,2]
[424638438,1781025052000,-500.0,0.00017857,2]
[424638441,1781025052000,-500.0,0.00017857,2]
[424638445,1781025052000,-500.0,0.00017857,2]
[424638455,1781025052000,-246.0049439,0.00017889,7]
[424638444,1781025052000,-152.0,0.00017857,2]
[424638446,1781025052000,-151.0,0.00017857,2]
[424638447,1781025052000,-152.0,0.00017857,2]
[424638448,1781025052000,-500.0,0.00017857,2]
[424638449,1781025052000,-209.40437684,0.00017857,2]
[424638450,1781025052000,-151.0,0.00017857,2]
[424638451,1781025052000,-152.0,0.00017857,2]
[424638453,1781025052000,-1343741.8075614,0.00017869,2]
[424638452,1781025052000,-500.0,0.00017857,2]
[424638454,1781025052000,-24696.8764438,0.00017869,2]
[424638456,1781025052000,-1241.45556877,0.0001789,2]
[424638409,1781025052000,-721.12765534,0.00017857,2]
[424638425,1781025052000,-152.0,0.00017857,2]
[424638429,1781025052000,-152.0,0.00017857,2]
[424638440,1781025052000,-152.0,0.00017857,2]
[424638427,1781025052000,-151.0,0.00017857,2]
[424638430,1781025052000,-500.0,0.00017857,2]
[424638398,1781025052000,-151.0,0.00017857,2]
[424638402,1781025052000,-151.0,0.00017857,2]
[424638403,1781025052000,-151.0,0.00017857,2]
[424638404,1781025052000,-151.0,0.00017857,2]
[424638406,1781025052000,-209.40437684,0.00017857,2]
[424638405,1781025052000,-152.0,0.00017857,2]
[424638410,1781025052000,-152.0,0.00017857,2]
[424638413,1781025052000,-151.0,0.00017857,2]
[424638414,1781025052000,-151.0,0.00017857,2]
[424638415,1781025052000,-152.0,0.00017857,2]
[424638416,1781025052000,-151.0,0.00017857,2]
[424638411,1781025052000,-500.0,0.00017857,2]
[424638400,1781025052000,-4853.74383408,0.00017857,2]
[424638422,1781025052000,-500.0,0.00017857,2]
[424638420,1781025052000,-152.0,0.00017857,2]
[424638419,1781025052000,-151.0,0.00017857,2]
[424638421,1781025052000,-151.0,0.00017857,2]
[424638418,1781025052000,-151.0,0.00017857,2]
[424638417,1781025052000,-500.0,0.00017857,2]
[424638423,1781025052000,-151.0,0.00017857,2]
[424638426,1781025052000,-500.0,0.00017857,2]
[424638412,1781025052000,-151.0,0.00017857,2]
[424638424,1781025052000,-151.0,0.00017857,2]
[424638432,1781025052000,-151.0,0.00017857,2]
[424638431,1781025052000,-151.0,0.00017857,2]
[424638491,1781025053000,-3554.4396299,0.000182,2]
[424638487,1781025053000,-151.0,0.00018132,2]
[424638496,1781025053000,-5000.0,0.00018254,2]
[424638495,1781025053000,-151.0,0.00018242,2]
[424638492,1781025053000,-9188.5988952,0.000182,2]
[424638486,1781025053000,-831.51979762,0.00018132,2]
[424638490,1781025053000,-1785.37285482,0.000182,2]
[424638500,1781025053000,-961.58486558,0.00018352,2]
[424638488,1781025053000,-862.28603014,0.00018187,2]
[424638480,1781025053000,-773.24136889,0.00018022,2]
[424638493,1781025053000,-300.0,0.000182,2]
[424638489,1781025053000,-151.0,0.00018187,2]
[424638494,1781025053000,-894.19061325,0.00018242,2]
[424638504,1781025053000,-9188.5988952,0.000184,2]
[424638497,1781025053000,-927.27566594,0.00018297,2]
[424638498,1781025053000,-151.0,0.00018297,2]
[424638501,1781025053000,-151.0,0.00018352,2]
[424638506,1781025053000,-154.6875,0.00018405,2]
[424638505,1781025053000,-300.0,0.000184,2]
[424638508,1781025053000,-719.04747942,0.00018405,2]
[424638503,1781025053000,-3554.4396299,0.000184,2]
[424638507,1781025053000,-181.08010149,0.00018405,2]
[424638511,1781025053000,-1481.2378076,0.00018405,2]
[424638510,1781025053000,-232.56974424,0.00018405,2]
[424638502,1781025053000,-1785.37285482,0.000184,2]
[424638499,1781025053000,-300.0,0.000183,2]
[424638485,1781025053000,-4686.55964528,0.000181,2]
[424638509,1781025053000,-299.0,0.00018405,2]
[424638482,1781025053000,-801.85129954,0.00018077,2]
[424638461,1781025053000,-745.65223615,0.00017967,2]
[424638460,1781025053000,-5033.33235594,0.00017912,2]
[424638457,1781025053000,-4686.55964528,0.000179,2]
[424638462,1781025053000,-151.0,0.00017967,2]
[424638465,1781025053000,-103164.66602279,0.00018,2]
[424638458,1781025053000,-719.04747942,0.00017912,2]
[424638463,1781025053000,-1320.75332669,0.00017967,2]
[424638459,1781025053000,-151.0,0.00017912,2]
[424638466,1781025053000,-1209.48142739,0.00018,2]
[424638464,1781025053000,-216.7152,0.00017997,2]
[424638467,1781025053000,-1785.37285482,0.00018,2]
[424638468,1781025053000,-350.0,0.00018,2]
[424638469,1781025053000,-3554.4396299,0.00018,2]
[424638470,1781025053000,-9188.5988952,0.00018,2]
[424638472,1781025053000,-150.0,0.00018019,2]
[424638473,1781025053000,-150.0,0.00018019,2]
[424638471,1781025053000,-300.0,0.00018,2]
[424638476,1781025053000,-150.0,0.00018019,2]
[424638477,1781025053000,-150.0,0.00018019,2]
[424638475,1781025053000,-150.0,0.00018019,2]
[424638474,1781025053000,-150.0,0.00018019,2]
[424638478,1781025053000,-150.0,0.00018019,2]
[424638479,1781025053000,-277.0,0.00018019,2]
[424638484,1781025053000,-1804.87473419,0.000181,2]
[424638481,1781025053000,-151.0,0.00018022,2]
[424638483,1781025053000,-151.0,0.00018077,2]
[424638512,1781025053000,-217.15233878,0.00018405,2]
[424638570,1781025053000,-428.871314,0.00019178,2]
[424638514,1781025053000,-2157.14243826,0.00018405,2]
[424638544,1781025053000,-225.18697532,0.00018953,2]
[424638545,1781025053000,-216.7152,0.00018997,2]
[424638547,1781025053000,-5245.26960294,0.00019,2]
[424638555,1781025053000,-164.00329593,0.00019083,31]
[424638556,1781025053000,-1785.37285482,0.000191,2]
[424638548,1781025053000,-1831.35481406,0.00019,2]
[424638557,1781025053000,-3554.4396299,0.000191,2]
[424638549,1781025053000,-483070.05464834,0.00019,2]
[424638550,1781025053000,-7029.88368986,0.00019,2]
[424638554,1781025053000,-682.0,0.00019,2]
[424638551,1781025053000,-714.29,0.00019,2]
[424638553,1781025053000,-1822.0,0.00019,2]
[424638552,1781025053000,-493.0,0.00019,2]
[424638559,1781025053000,-428.871314,0.00019178,2]
[424638562,1781025053000,-428.871314,0.00019178,2]
[424638560,1781025053000,-428.871314,0.00019178,2]
[424638561,1781025053000,-428.871314,0.00019178,2]
[424638558,1781025053000,-9188.5988952,0.000191,2]
[424638564,1781025053000,-428.871314,0.00019178,2]
[424638565,1781025053000,-428.871314,0.00019178,2]
[424638563,1781025053000,-428.871314,0.00019178,2]
[424638567,1781025053000,-428.871314,0.00019178,2]
[424638568,1781025053000,-428.871314,0.00019178,2]
[424638569,1781025053000,-428.871314,0.00019178,2]
[424638566,1781025053000,-428.871314,0.00019178,2]
[424638546,1781025053000,-216.7152,0.00018997,2]
[424638542,1781025053000,-151.0,0.00018953,2]
[424638513,1781025053000,-9905.59807649,0.00018405,2]
[424638540,1781025053000,-2236.95670847,0.00018953,2]
[424638541,1781025053000,-225.18697532,0.00018953,2]
[424638515,1781025053000,-217.15233878,0.00018405,2]
[424638516,1781025053000,-151.0,0.00018405,2]
[424638517,1781025053000,-151.0,0.00018405,2]
[424638518,1781025053000,-217.15233878,0.00018405,2]
[424638519,1781025053000,-997.16350561,0.00018407,2]
[424638522,1781025053000,-4000.0,0.00018484,3]
[424638520,1781025053000,-151.0,0.00018407,2]
[424638534,1781025053000,-187.78006524,0.00018953,2]
[424638523,1781025053000,-1785.37285482,0.000185,2]
[424638527,1781025053000,-1785.37285482,0.000187,2]
[424638524,1781025053000,-3554.4396299,0.000185,2]
[424638525,1781025053000,-9188.5988952,0.000185,2]
[424638521,1781025053000,-1242.4,0.0001841,2]
[424638530,1781025053000,-1785.37285482,0.000189,2]
[424638526,1781025053000,-300.0,0.000186,2]
[424638538,1781025053000,-225.18697532,0.00018953,2]
[424638543,1781025053000,-151.0,0.00018953,2]
[424638539,1781025053000,-10272.10520532,0.00018953,2]
[424638535,1781025053000,-745.65223615,0.00018953,2]
[424638537,1781025053000,-1536.04360648,0.00018953,2]
[424638532,1781025053000,-9188.5988952,0.000189,2]
[424638536,1781025053000,-232.56974424,0.00018953,2]
[424638533,1781025053000,-154.6875,0.00018953,2]
[424638529,1781025053000,-9188.5988952,0.000187,2]
[424638528,1781025053000,-3554.4396299,0.000187,2]
[424638531,1781025053000,-3554.4396299,0.000189,2]
[424638617,1781025054000,-223.960333,0.00019178,2]
[424638613,1781025054000,-223.960333,0.00019178,2]
[424638610,1781025054000,-223.960333,0.00019178,2]
[424638616,1781025054000,-223.960333,0.00019178,2]
[424638599,1781025054000,-223.960333,0.00019178,2]
[424638607,1781025054000,-223.960333,0.00019178,2]
[424638602,1781025054000,-223.960333,0.00019178,2]
[424638603,1781025054000,-223.960333,0.00019178,2]
[424638598,1781025054000,-186.921123,0.00019178,2]
[424638611,1781025054000,-223.960333,0.00019178,2]
[424638608,1781025054000,-223.960333,0.00019178,2]
[424638609,1781025054000,-223.960333,0.00019178,2]
[424638625,1781025054000,-1750.0,0.00019452,2]
[424638618,1781025054000,-223.960329,0.00019178,2]
[424638612,1781025054000,-223.960333,0.00019178,2]
[424638614,1781025054000,-223.960333,0.00019178,2]
[424638624,1781025054000,-514.0,0.00019425,2]
[424638620,1781025054000,-1785.37285482,0.000193,2]
[424638626,1781025054000,-52486.79364518,0.000195,2]
[424638631,1781025054000,-194.72792766,0.00019501,2]
[424638621,1781025054000,-3554.4396299,0.000193,2]
[424638623,1781025054000,-2000.0,0.000193,2]
[424638630,1781025054000,-154.6875,0.00019501,2]
[424638619,1781025054000,-217.15233878,0.00019226,2]
[424638627,1781025054000,-1785.37285482,0.000195,2]
[424638600,1781025054000,-223.960333,0.00019178,2]
[424638615,1781025054000,-223.960333,0.00019178,2]
[424638601,1781025054000,-223.960333,0.00019178,2]
[424638591,1781025054000,-186.921122,0.00019178,2]
[424638597,1781025054000,-186.921122,0.00019178,2]
[424638571,1781025054000,-428.871314,0.00019178,2]
[424638622,1781025054000,-9188.5988952,0.000193,2]
[424638581,1781025054000,-186.921122,0.00019178,2]
[424638572,1781025054000,-428.871314,0.00019178,2]
[424638573,1781025054000,-428.871314,0.00019178,2]
[424638575,1781025054000,-428.871314,0.00019178,2]
[424638577,1781025054000,-428.871314,0.00019178,2]
[424638574,1781025054000,-428.871314,0.00019178,2]
[424638576,1781025054000,-428.871314,0.00019178,2]
[424638580,1781025054000,-186.921122,0.00019178,2]
[424638579,1781025054000,-186.921122,0.00019178,2]
[424638578,1781025054000,-428.87132,0.00019178,2]
[424638585,1781025054000,-186.921122,0.00019178,2]
[424638583,1781025054000,-186.921122,0.00019178,2]
[424638586,1781025054000,-186.921122,0.00019178,2]
[424638588,1781025054000,-186.921122,0.00019178,2]
[424638593,1781025054000,-186.921122,0.00019178,2]
[424638587,1781025054000,-186.921122,0.00019178,2]
[424638590,1781025054000,-186.921122,0.00019178,2]
[424638589,1781025054000,-186.921122,0.00019178,2]
[424638592,1781025054000,-186.921122,0.00019178,2]
[424638584,1781025054000,-186.921122,0.00019178,2]
[424638594,1781025054000,-186.921122,0.00019178,2]
[424638595,1781025054000,-186.921122,0.00019178,2]
[424638605,1781025054000,-223.960333,0.00019178,2]
[424638606,1781025054000,-223.960333,0.00019178,2]
[424638604,1781025054000,-223.960333,0.00019178,2]
[424638596,1781025054000,-186.921122,0.00019178,2]
[424638582,1781025054000,-186.921122,0.00019178,2]
[424638628,1781025054000,-3554.4396299,0.000195,2]
[424638632,1781025054000,-773.24136889,0.00019501,2]
[424638658,1781025054000,-3950.0,0.0002,2]
[424638667,1781025054000,-13125.31550498,0.0002,2]
[424638660,1781025054000,-1314.77233542,0.0002,2]
[424638665,1781025054000,-52457.76322009,0.0002,2]
[424638668,1781025054000,-152.0,0.0002,2]
[424638678,1781025054000,-493.0,0.0002,2]
[424638669,1781025054000,-5295.40938311,0.0002,2]
[424638677,1781025054000,-656.0,0.0002,2]
[424638675,1781025054000,-3665.0,0.0002,2]
[424638672,1781025054000,-544.0,0.0002,2]
[424638676,1781025054000,-400.0,0.0002,2]
[424638671,1781025054000,-1526.38428509,0.0002,2]
[424638673,1781025054000,-592.0,0.0002,2]
[424638670,1781025054000,-390.411394,0.0002,2]
[424638674,1781025054000,-1752.0,0.0002,2]
[424638679,1781025054000,-1822.0,0.0002,2]
[424638680,1781025054000,-682.0,0.0002,2]
[424638683,1781025054000,-603.0,0.0002,2]
[424638681,1781025054000,-531.0,0.0002,2]
[424638686,1781025054000,-3054.0,0.0002,2]
[424638682,1781025054000,-2718.0,0.0002,2]
[424638690,1781025054000,-160.0,0.0002,3]
[424638684,1781025054000,-993.0,0.0002,2]
[424638687,1781025054000,-300.0,0.0002,2]
[424638629,1781025054000,-9188.5988952,0.000195,2]
[424638688,1781025054000,-213.98,0.0002,2]
[424638689,1781025054000,-889.060574,0.0002,2]
[424638663,1781025054000,-1061.28257444,0.0002,2]
[424638659,1781025054000,-26840.37437958,0.0002,2]
[424638685,1781025054000,-265.0,0.0002,2]
[424638664,1781025054000,-26828.28891392,0.0002,2]
[424638662,1781025054000,-200.0,0.0002,2]
[424638634,1781025054000,-1592.87721992,0.00019501,2]
[424638635,1781025054000,-233.5188934,0.00019501,2]
[424638637,1781025054000,-2319.72410669,0.00019501,2]
[424638633,1781025054000,-232.56974424,0.00019501,2]
[424638644,1781025054000,-1785.37285482,0.000197,2]
[424638639,1781025054000,-151.0,0.00019501,2]
[424638643,1781025054000,-216.7152,0.0001966,2]
[424638638,1781025054000,-233.5188934,0.00019501,2]
[424638640,1781025054000,-151.0,0.00019501,2]
[424638642,1781025054000,-150.55752276,0.00019588,2]
[424638641,1781025054000,-233.5188934,0.00019501,2]
[424638653,1781025054000,-5291.53444339,0.0002,2]
[424638636,1781025054000,-10652.17309792,0.00019501,2]
[424638651,1781025054000,-504713.30331671,0.0001995,15]
[424638647,1781025054000,-2000.0,0.000198,2]
[424638661,1781025054000,-9999.99999901,0.0002,2]
[424638657,1781025054000,-3966.66481669,0.0002,2]
[424638656,1781025054000,-25984.28549199,0.0002,2]
[424638650,1781025054000,-216.7152,0.00019947,2]
[424638652,1781025054000,-216.7152,0.00019997,2]
[424638666,1781025054000,-8000.0,0.0002,2]
[424638655,1781025054000,-179.21555397,0.0002,2]
[424638646,1781025054000,-9188.5988952,0.000197,2]
[424638649,1781025054000,-3865.64286019,0.000199,3]
[424638648,1781025054000,-350.0,0.00019854,3]
[424638645,1781025054000,-3554.4396299,0.000197,2]
[424638654,1781025054000,-1557.47112024,0.0002,2]
[424638728,1781025055000,-300.0,0.00020095,2]
[424638727,1781025055000,-300.0,0.00020095,2]
[424638729,1781025055000,-300.0,0.00020095,2]
[424638723,1781025055000,-150.0,0.00020094,2]
[424638724,1781025055000,-183.0,0.00020094,2]
[424638725,1781025055000,-300.0,0.00020095,2]
[424638726,1781025055000,-300.0,0.00020095,2]
[424638722,1781025055000,-150.0,0.00020094,2]
[424638730,1781025055000,-300.0,0.00020095,2]
[424638721,1781025055000,-150.0,0.00020094,2]
[424638720,1781025055000,-150.0,0.00020094,2]
[424638733,1781025055000,-300.0,0.00020095,2]
[424638731,1781025055000,-300.0,0.00020095,2]
[424638736,1781025055000,-193.0,0.00020096,2]
[424638735,1781025055000,-194.0,0.00020096,2]
[424638737,1781025055000,-150.0,0.00020096,2]
[424638734,1781025055000,-172.0,0.00020095,2]
[424638739,1781025055000,-150.0,0.00020096,2]
[424638745,1781025055000,-309.0,0.000202,2]
[424638746,1781025055000,-2000.0,0.00020275,7]
[424638747,1781025055000,-1242.4,0.00020381,2]
[424638738,1781025055000,-150.0,0.00020096,2]
[424638748,1781025055000,-1526.38428509,0.000204,2]
[424638719,1781025055000,-150.0,0.00020094,2]
[424638732,1781025055000,-300.0,0.00020095,2]
[424638718,1781025055000,-150.0,0.00020094,2]
[424638696,1781025055000,-232.56974424,0.00020049,2]
[424638711,1781025055000,-150.0,0.00020093,2]
[424638740,1781025055000,-173.0,0.00020096,2]
[424638691,1781025055000,-514.0,0.0002,2]
[424638702,1781025055000,-362.87495286,0.00020049,2]
[424638692,1781025055000,-215.89329178,0.0002,3]
[424638703,1781025055000,-151.0,0.00020049,2]
[424638701,1781025055000,-151.0,0.00020049,2]
[424638694,1781025055000,-201.93286098,0.00020049,2]
[424638699,1781025055000,-11046.30350254,0.00020049,2]
[424638697,1781025055000,-1651.81367706,0.00020049,2]
[424638698,1781025055000,-242.15909246,0.00020049,2]
[424638693,1781025055000,-154.6875,0.00020049,2]
[424638716,1781025055000,-150.0,0.00020094,2]
[424638700,1781025055000,-2405.55389863,0.00020049,2]
[424638704,1781025055000,-242.15909246,0.00020049,2]
[424638706,1781025055000,-166.02768541,0.00020074,2]
[424638705,1781025055000,-413.50170711,0.00020074,2]
[424638707,1781025055000,-171.05882738,0.00020074,2]
[424638709,1781025055000,-210.0,0.00020092,2]
[424638712,1781025055000,-150.0,0.00020093,2]
[424638710,1781025055000,-259.0,0.00020092,2]
[424638714,1781025055000,-150.0,0.00020093,2]
[424638715,1781025055000,-243.0,0.00020093,2]
[424638713,1781025055000,-150.0,0.00020093,2]
[424638708,1781025055000,-518.92536848,0.00020074,2]
[424638695,1781025055000,-431.83876822,0.00020049,2]
[424638743,1781025055000,-316.0,0.000202,2]
[424638717,1781025055000,-150.0,0.00020094,2]
[424638741,1781025055000,-298.0,0.00020097,2]
[424638774,1781025055000,-390.411394,0.00021,2]
[424638778,1781025055000,-150.0,0.00021,2]
[424638779,1781025055000,-544.0,0.00021,2]
[424638780,1781025055000,-592.0,0.00021,2]
[424638781,1781025055000,-1752.0,0.00021,2]
[424638772,1781025055000,-18584.10281994,0.00021,2]
[424638782,1781025055000,-3665.0,0.00021,2]
[424638783,1781025055000,-656.0,0.00021,2]
[424638784,1781025055000,-493.0,0.00021,2]
[424638786,1781025055000,-682.0,0.00021,2]
[424638787,1781025055000,-531.0,0.00021,2]
[424638777,1781025055000,-1526.38428509,0.00021,2]
[424638785,1781025055000,-1822.0,0.00021,2]
[424638788,1781025055000,-2718.0,0.00021,2]
[424638789,1781025055000,-603.0,0.00021,2]
[424638791,1781025055000,-265.0,0.00021,2]
[424638792,1781025055000,-160.0,0.00021,30]
[424638793,1781025055000,-514.0,0.00021,2]
[424638796,1781025055000,-215.89329178,0.00021,7]
[424638794,1781025055000,-160.0,0.00021,7]
[424638797,1781025055000,-154.6875,0.00021145,2]
[424638798,1781025055000,-217.15233878,0.00021145,2]
[424638799,1781025055000,-232.56974424,0.00021145,2]
[424638744,1781025055000,-888.0,0.000202,2]
[424638790,1781025055000,-993.0,0.00021,2]
[424638800,1781025055000,-1776.30922209,0.00021145,2]
[424638795,1781025055000,-215.89329178,0.00021,30]
[424638773,1781025055000,-3419.79832629,0.00021,7]
[424638776,1781025055000,-978.19588565,0.00021,2]
[424638742,1781025055000,-1526.38428509,0.000202,2]
[424638749,1781025055000,-714.29,0.000204,2]
[424638750,1781025055000,-4488.0,0.00020444,2]
[424638758,1781025055000,-1712.93078311,0.00020597,2]
[424638759,1781025055000,-251.11897888,0.00020597,2]
[424638755,1781025055000,-154.6875,0.00020597,2]
[424638756,1781025055000,-209.40437684,0.00020597,2]
[424638757,1781025055000,-232.56974424,0.00020597,2]
[424638752,1781025055000,-151.0,0.00020596,2]